fUST/lending_fUST_20260527
["ID","MTS","AMOUNT","RATE_DAILY","PERIOD"]
[423131079,1779874241000,-500.0,9.31e-05,2]
[423131078,1779874241000,-750.96,9.31e-05,2]
[423131077,1779874241000,-500.0,9.31e-05,2]
[423131101,1779874241000,-500.0,9.311e-05,2]
[423131080,1779874241000,-500.0,9.31e-05,2]
[423131091,1779874241000,-500.0,9.31e-05,2]
[423131073,1779874241000,-500.0,9.31e-05,2]
[423131089,1779874241000,-500.0,9.31e-05,2]
[423131099,1779874241000,-500.0,9.311e-05,2]
[423131114,1779874241000,-500.0,9.311e-05,2]
[423131105,1779874241000,-500.0,9.311e-05,2]
[423131102,1779874241000,-500.0,9.311e-05,2]
[423131109,1779874241000,-500.0,9.311e-05,2]
[423131107,1779874241000,-500.0,9.311e-05,2]
[423131112,1779874241000,-500.0,9.311e-05,2]
[423131113,1779874241000,-500.0,9.311e-05,2]
[423131111,1779874241000,-500.0,9.311e-05,2]
[423131100,1779874241000,-306.93935152,9.311e-05,2]
[423131088,1779874241000,-500.0,9.31e-05,2]
[423131093,1779874241000,-500.0,9.311e-05,2]
[423131097,1779874241000,-500.0,9.311e-05,2]
[423131092,1779874241000,-748.91,9.31e-05,2]
[423131103,1779874241000,-500.0,9.311e-05,2]
[423131184,1779874242000,-750.96,9.584e-05,2]
[423131185,1779874242000,-500.0,9.584e-05,2]
[423131192,1779874242000,-500.0,9.584e-05,2]
[423131194,1779874242000,-500.0,9.584e-05,2]
[423131197,1779874242000,-500.0,9.584e-05,2]
[423131196,1779874242000,-500.0,9.584e-05,2]
[423131189,1779874242000,-500.0,9.584e-05,2]
[423131177,1779874242000,-620.22,9.584e-05,2]
[423131179,1779874242000,-500.0,9.584e-05,2]
[423131178,1779874242000,-462.74307327,9.584e-05,2]
[423131182,1779874242000,-1127.87,9.584e-05,2]
[423131195,1779874242000,-500.0,9.584e-05,2]
[423131193,1779874242000,-500.0,9.584e-05,2]
[423131172,1779874242000,-161.53149075,9.584e-05,2]
[423131205,1779874242000,-500.0,9.585e-05,2]
[423131188,1779874242000,-500.0,9.584e-05,2]
[423131187,1779874242000,-500.0,9.584e-05,2]
[423131191,1779874242000,-500.0,9.584e-05,2]
[423131186,1779874242000,-500.0,9.584e-05,2]
[423131201,1779874242000,-500.0,9.585e-05,2]
[423131211,1779874242000,-500.0,9.585e-05,2]
[423131199,1779874242000,-500.0,9.585e-05,2]
[423131207,1779874242000,-500.0,9.585e-05,2]
[423131208,1779874242000,-500.0,9.585e-05,2]
[423131210,1779874242000,-500.0,9.585e-05,2]
[423131204,1779874242000,-500.0,9.585e-05,2]
[423131209,1779874242000,-500.0,9.585e-05,2]
[423131198,1779874242000,-748.91,9.584e-05,2]
[423131181,1779874242000,-500.0,9.584e-05,2]
[423131190,1779874242000,-500.0,9.584e-05,2]
[423131176,1779874242000,-500.0,9.584e-05,2]
[423131160,1779874242000,-500.0,9.584e-05,2]
[423131175,1779874242000,-500.0,9.584e-05,2]
[423131202,1779874242000,-500.0,9.585e-05,2]
[423131155,1779874242000,-161.316583,9.574e-05,2]
[423131156,1779874242000,-1880.46273341,9.58e-05,2]
[423131157,1779874242000,-500.0,9.584e-05,2]
[423131150,1779874242000,-500.0,9.312e-05,2]
[423131146,1779874242000,-859.77,9.312e-05,2]
[423131147,1779874242000,-500.0,9.312e-05,2]
[423131151,1779874242000,-500.0,9.312e-05,2]
[423131153,1779874242000,-500.0,9.313e-05,2]
[423131149,1779874242000,-500.0,9.312e-05,2]
[423131152,1779874242000,-500.0,9.312e-05,2]
[423131154,1779874242000,-500.0,9.313e-05,2]
[423131148,1779874242000,-500.0,9.312e-05,2]
[423131165,1779874242000,-500.0,9.584e-05,2]
[423131163,1779874242000,-440.36469939,9.584e-05,2]
[423131167,1779874242000,-500.0,9.584e-05,2]
[423131162,1779874242000,-1338.01,9.584e-05,2]
[423131164,1779874242000,-500.0,9.584e-05,2]
[423131168,1779874242000,-500.0,9.584e-05,2]
[423131166,1779874242000,-500.0,9.584e-05,2]
[423131159,1779874242000,-500.0,9.584e-05,2]
[423131161,1779874242000,-500.0,9.584e-05,2]
[423131158,1779874242000,-500.0,9.584e-05,2]
[423131171,1779874242000,-500.0,9.584e-05,2]
[423131169,1779874242000,-250.17859059,9.584e-05,2]
[423131170,1779874242000,-500.0,9.584e-05,2]
[423131183,1779874242000,-500.0,9.584e-05,2]
[423131174,1779874242000,-508.1672781,9.584e-05,2]
[423131180,1779874242000,-500.0,9.584e-05,2]
[423131173,1779874242000,-500.0,9.584e-05,2]
[423131206,1779874242000,-500.0,9.585e-05,2]
[423131216,1779874242000,-255.96992707,9.585e-05,2]
[423131200,1779874242000,-500.0,9.585e-05,2]
[423131243,1779874242000,-1089.55,9.585e-05,2]
[423131253,1779874242000,-637.03314019,9.586e-05,2]
[423131250,1779874242000,-500.0,9.585e-05,2]
[423131251,1779874242000,-859.77,9.586e-05,2]
[423131252,1779874242000,-500.0,9.586e-05,2]
[423131255,1779874242000,-500.0,9.586e-05,2]
[423131254,1779874242000,-500.0,9.586e-05,2]
[423131241,1779874242000,-500.0,9.585e-05,2]
[423131257,1779874242000,-278.27880041,9.586e-05,2]
[423131260,1779874242000,-299.2422388,9.686e-05,2]
[423131258,1779874242000,-583.95404397,9.587e-05,2]
[423131259,1779874242000,-500.0,9.587e-05,2]
[423131261,1779874242000,-263.913,9.722e-05,2]
[423131263,1779874242000,-200000.0,9.748e-05,2]
[423131265,1779874242000,-500.0,9.858e-05,2]
[423131262,1779874242000,-923.9775,9.722e-05,2]
[423131270,1779874242000,-1338.01,9.858e-05,2]
[423131269,1779874242000,-500.0,9.858e-05,2]
[423131278,1779874242000,-500.0,9.858e-05,2]
[423131267,1779874242000,-500.0,9.858e-05,2]
[423131268,1779874242000,-500.0,9.858e-05,2]
[423131272,1779874242000,-500.0,9.858e-05,2]
[423131266,1779874242000,-500.0,9.858e-05,2]
[423131271,1779874242000,-417.73806168,9.858e-05,2]
[423131275,1779874242000,-500.0,9.858e-05,2]
[423131274,1779874242000,-500.0,9.858e-05,2]
[423131277,1779874242000,-500.0,9.858e-05,2]
[423131273,1779874242000,-500.0,9.858e-05,2]
[423131212,1779874242000,-500.0,9.585e-05,2]
[423131246,1779874242000,-1051.65,9.585e-05,2]
[423131242,1779874242000,-500.0,9.585e-05,2]
[423131264,1779874242000,-325.9594807,9.845e-05,2]
[423131244,1779874242000,-500.0,9.585e-05,2]
[423131203,1779874242000,-500.0,9.585e-05,2]
[423131256,1779874242000,-517.35106682,9.586e-05,2]
[423131213,1779874242000,-500.0,9.585e-05,2]
[423131224,1779874242000,-500.0,9.585e-05,2]
[423131220,1779874242000,-500.0,9.585e-05,2]
[423131215,1779874242000,-500.0,9.585e-05,2]
[423131276,1779874242000,-500.0,9.858e-05,2]
[423131221,1779874242000,-500.0,9.585e-05,2]
[423131219,1779874242000,-500.0,9.585e-05,2]
[423131218,1779874242000,-500.0,9.585e-05,2]
[423131226,1779874242000,-500.0,9.585e-05,2]
[423131214,1779874242000,-500.0,9.585e-05,2]
[423131225,1779874242000,-500.0,9.585e-05,2]
[423131222,1779874242000,-500.0,9.585e-05,2]
[423131223,1779874242000,-500.0,9.585e-05,2]
[423131217,1779874242000,-500.0,9.585e-05,2]
[423131235,1779874242000,-500.0,9.585e-05,2]
[423131248,1779874242000,-500.0,9.585e-05,2]
[423131228,1779874242000,-500.0,9.585e-05,2]
[423131234,1779874242000,-441.79482215,9.585e-05,2]
[423131237,1779874242000,-500.0,9.585e-05,2]
[423131240,1779874242000,-500.0,9.585e-05,2]
[423131233,1779874242000,-500.0,9.585e-05,2]
[423131232,1779874242000,-500.0,9.585e-05,2]
[423131236,1779874242000,-1241.38,9.585e-05,2]
[423131230,1779874242000,-265.47602992,9.585e-05,2]
[423131231,1779874242000,-500.0,9.585e-05,2]
[423131239,1779874242000,-500.0,9.585e-05,2]
[423131229,1779874242000,-237.68756776,9.585e-05,2]
[423131227,1779874242000,-500.0,9.585e-05,2]
[423131238,1779874242000,-823.57,9.585e-05,2]
[423131336,1779874243000,-500.0,9.859e-05,2]
[423131333,1779874243000,-500.0,9.859e-05,2]
[423131335,1779874243000,-500.0,9.859e-05,2]
[423131337,1779874243000,-500.0,9.859e-05,2]
[423131334,1779874243000,-500.0,9.859e-05,2]
[423131332,1779874243000,-500.0,9.859e-05,2]
[423131320,1779874243000,-500.0,9.859e-05,2]
[423131329,1779874243000,-500.0,9.859e-05,2]
[423131326,1779874243000,-500.0,9.859e-05,2]
[423131322,1779874243000,-252.50841967,9.859e-05,2]
[423131325,1779874243000,-500.0,9.859e-05,2]
[423131324,1779874243000,-159.65490597,9.859e-05,2]
[423131341,1779874243000,-500.0,9.859e-05,2]
[423131331,1779874243000,-500.0,9.859e-05,2]
[423131343,1779874243000,-500.0,9.859e-05,2]
[423131356,1779874243000,-859.77,9.86e-05,2]
[423131340,1779874243000,-500.0,9.859e-05,2]
[423131342,1779874243000,-500.0,9.859e-05,2]
[423131338,1779874243000,-500.0,9.859e-05,2]
[423131347,1779874243000,-500.0,9.859e-05,2]
[423131348,1779874243000,-500.0,9.859e-05,2]
[423131344,1779874243000,-1241.38,9.859e-05,2]
[423131349,1779874243000,-500.0,9.859e-05,2]
[423131346,1779874243000,-823.57,9.859e-05,2]
[423131345,1779874243000,-310.32523115,9.859e-05,2]
[423131350,1779874243000,-500.0,9.859e-05,2]
[423131352,1779874243000,-500.0,9.859e-05,2]
[423131355,1779874243000,-343.43455674,9.859e-05,2]
[423131353,1779874243000,-1051.65,9.859e-05,2]
[423131321,1779874243000,-500.0,9.859e-05,2]
[423131339,1779874243000,-500.0,9.859e-05,2]
[423131318,1779874243000,-605.77394327,9.859e-05,2]
[423131283,1779874243000,-500.0,9.858e-05,2]
[423131316,1779874243000,-500.0,9.859e-05,2]
[423131291,1779874243000,-500.0,9.858e-05,2]
[423131289,1779874243000,-750.96,9.858e-05,2]
[423131287,1779874243000,-500.0,9.858e-05,2]
[423131282,1779874243000,-500.0,9.858e-05,2]
[423131293,1779874243000,-500.0,9.858e-05,2]
[423131285,1779874243000,-1127.87,9.858e-05,2]
[423131280,1779874243000,-500.0,9.858e-05,2]
[423131279,1779874243000,-500.0,9.858e-05,2]
[423131294,1779874243000,-500.0,9.858e-05,2]
[423131284,1779874243000,-500.0,9.858e-05,2]
[423131295,1779874243000,-500.0,9.858e-05,2]
[423131281,1779874243000,-620.22,9.858e-05,2]
[423131296,1779874243000,-500.0,9.858e-05,2]
[423131298,1779874243000,-500.0,9.858e-05,2]
[423131323,1779874243000,-500.0,9.859e-05,2]
[423131297,1779874243000,-500.0,9.858e-05,2]
[423131302,1779874243000,-500.0,9.858e-05,2]
[423131310,1779874243000,-500.0,9.859e-05,2]
[423131308,1779874243000,-500.0,9.859e-05,2]
[423131304,1779874243000,-500.0,9.858e-05,2]
[423131300,1779874243000,-500.0,9.858e-05,2]
[423131311,1779874243000,-500.0,9.859e-05,2]
[423131306,1779874243000,-748.91,9.858e-05,2]
[423131313,1779874243000,-500.0,9.859e-05,2]
[423131315,1779874243000,-500.0,9.859e-05,2]
[423131314,1779874243000,-500.0,9.859e-05,2]
[423131317,1779874243000,-500.0,9.859e-05,2]
[423131327,1779874243000,-351.07246501,9.859e-05,2]
[423131328,1779874243000,-500.0,9.859e-05,2]
[423131319,1779874243000,-609.97168117,9.859e-05,2]
[423131299,1779874243000,-500.0,9.858e-05,2]
[423131354,1779874243000,-172.54957007,9.859e-05,2]
[423131361,1779874243000,-150.062,9.946e-05,2]
[423131368,1779874243000,-151.0,0.0001,2]
[423131391,1779874243000,-246.75770995,0.00010132,2]
[423131394,1779874243000,-500.0,0.00010132,2]
[423131392,1779874243000,-422.69785005,0.00010132,2]
[423131385,1779874243000,-151.76111474,0.0001,2]
[423131399,1779874243000,-500.0,0.00010132,2]
[423131398,1779874243000,-500.0,0.00010132,2]
[423131400,1779874243000,-500.0,0.00010132,2]
[423131410,1779874243000,-1127.87,0.00010132,2]
[423131411,1779874243000,-500.0,0.00010132,2]
[423131404,1779874243000,-615.92427851,0.00010132,2]
[423131403,1779874243000,-500.0,0.00010132,2]
[423131401,1779874243000,-500.0,0.00010132,2]
[423131409,1779874243000,-500.0,0.00010132,2]
[423131402,1779874243000,-500.0,0.00010132,2]
[423131396,1779874243000,-1338.01,0.00010132,2]
[423131405,1779874243000,-500.0,0.00010132,2]
[423131406,1779874243000,-620.22,0.00010132,2]
[423131408,1779874243000,-500.0,0.00010132,2]
[423131417,1779874243000,-265.59,0.00010132,2]
[423131413,1779874243000,-500.0,0.00010132,2]
[423131412,1779874243000,-750.96,0.00010132,2]
[423131423,1779874243000,-500.0,0.00010132,2]
[423131414,1779874243000,-500.0,0.00010132,2]
[423131416,1779874243000,-500.0,0.00010132,2]
[423131420,1779874243000,-500.0,0.00010132,2]
[423131422,1779874243000,-500.0,0.00010132,2]
[423131418,1779874243000,-500.0,0.00010132,2]
[423131351,1779874243000,-1089.55,9.859e-05,2]
[423131415,1779874243000,-500.0,0.00010132,2]
[423131421,1779874243000,-500.0,0.00010132,2]
[423131407,1779874243000,-500.0,0.00010132,2]
[423131389,1779874243000,-1414.0,0.00010001,2]
[423131419,1779874243000,-500.0,0.00010132,2]
[423131397,1779874243000,-500.0,0.00010132,2]
[423131386,1779874243000,-742.0,0.00010001,2]
[423131364,1779874243000,-3364.70300086,0.0001,2]
[423131369,1779874243000,-151.0,0.0001,2]
[423131365,1779874243000,-160.0,0.0001,2]
[423131359,1779874243000,-500.0,9.86e-05,2]
[423131357,1779874243000,-500.0,9.86e-05,2]
[423131360,1779874243000,-500.0,9.861e-05,2]
[423131366,1779874243000,-151.0,0.0001,2]
[423131367,1779874243000,-151.0,0.0001,2]
[423131362,1779874243000,-166.707,9.946e-05,2]
[423131358,1779874243000,-501.58985474,9.86e-05,2]
[423131370,1779874243000,-151.0,0.0001,2]
[423131373,1779874243000,-151.0,0.0001,2]
[423131372,1779874243000,-151.0,0.0001,2]
[423131381,1779874243000,-151.0,0.0001,2]
[423131363,1779874243000,-150.0,9.946e-05,2]
[423131371,1779874243000,-151.0,0.0001,2]
[423131377,1779874243000,-151.0,0.0001,2]
[423131384,1779874243000,-151.0,0.0001,2]
[423131393,1779874243000,-500.0,0.00010132,2]
[423131395,1779874243000,-500.0,0.00010132,2]
[423131387,1779874243000,-185.0,0.00010001,2]
[423131375,1779874243000,-151.0,0.0001,2]
[423131388,1779874243000,-443.0,0.00010001,2]
[423131374,1779874243000,-151.0,0.0001,2]
[423131379,1779874243000,-151.0,0.0001,2]
[423131376,1779874243000,-151.0,0.0001,2]
[423131383,1779874243000,-151.0,0.0001,2]
[423131390,1779874243000,-3364.70300086,0.000101,2]
[423131382,1779874243000,-151.0,0.0001,2]
[423131378,1779874243000,-151.0,0.0001,2]
[423131380,1779874243000,-151.0,0.0001,2]
[423131454,1779874244000,-500.0,0.00010133,2]
[423131480,1779874244000,-500.0,0.00010406,2]
[423131460,1779874244000,-859.77,0.00010134,2]
[423131457,1779874244000,-1089.55,0.00010133,2]
[423131459,1779874244000,-1051.65,0.00010133,2]
[423131458,1779874244000,-500.0,0.00010133,2]
[423131471,1779874244000,-794.0,0.000103,2]
[423131477,1779874244000,-500.0,0.00010406,2]
[423131465,1779874244000,-500.0,0.00010135,2]
[423131463,1779874244000,-500.0,0.00010134,2]
[423131475,1779874244000,-500.0,0.00010406,2]
[423131476,1779874244000,-1338.01,0.00010406,2]
[423131461,1779874244000,-500.0,0.00010134,2]
[423131472,1779874244000,-3364.70300086,0.000104,2]
[423131474,1779874244000,-500.0,0.00010406,2]
[423131478,1779874244000,-404.20686388,0.00010406,2]
[423131473,1779874244000,-500.0,0.00010406,2]
[423131479,1779874244000,-511.38446874,0.00010406,2]
[423131490,1779874244000,-750.96,0.00010406,2]
[423131481,1779874244000,-500.0,0.00010406,2]
[423131487,1779874244000,-500.0,0.00010406,2]
[423131482,1779874244000,-516.25677923,0.00010406,2]
[423131489,1779874244000,-640.42,0.00010406,2]
[423131485,1779874244000,-500.0,0.00010406,2]
[423131486,1779874244000,-500.0,0.00010406,2]
[423131488,1779874244000,-1127.87,0.00010406,2]
[423131455,1779874244000,-500.0,0.00010133,2]
[423131469,1779874244000,-3364.70300086,0.000103,2]
[423131453,1779874244000,-189.77838304,0.00010133,2]
[423131445,1779874244000,-500.0,0.00010133,2]
[423131452,1779874244000,-823.57,0.00010133,2]
[423131424,1779874244000,-500.0,0.00010133,2]
[423131435,1779874244000,-500.0,0.00010133,2]
[423131429,1779874244000,-500.0,0.00010133,2]
[423131432,1779874244000,-500.0,0.00010133,2]
[423131433,1779874244000,-500.0,0.00010133,2]
[423131431,1779874244000,-233.4659586,0.00010133,2]
[423131428,1779874244000,-589.45526206,0.00010133,2]
[423131430,1779874244000,-500.0,0.00010133,2]
[423131425,1779874244000,-500.0,0.00010133,2]
[423131434,1779874244000,-500.0,0.00010133,2]
[423131427,1779874244000,-500.0,0.00010133,2]
[423131426,1779874244000,-500.0,0.00010133,2]
[423131437,1779874244000,-303.23061934,0.00010133,2]
[423131441,1779874244000,-500.0,0.00010133,2]
[423131444,1779874244000,-500.0,0.00010133,2]
[423131448,1779874244000,-500.0,0.00010133,2]
[423131446,1779874244000,-500.0,0.00010133,2]
[423131438,1779874244000,-500.0,0.00010133,2]
[423131442,1779874244000,-500.0,0.00010133,2]
[423131440,1779874244000,-500.0,0.00010133,2]
[423131443,1779874244000,-500.0,0.00010133,2]
[423131436,1779874244000,-500.0,0.00010133,2]
[423131447,1779874244000,-500.0,0.00010133,2]
[423131439,1779874244000,-500.0,0.00010133,2]
[423131449,1779874244000,-500.0,0.00010133,2]
[423131450,1779874244000,-500.0,0.00010133,2]
[423131456,1779874244000,-500.0,0.00010133,2]
[423131451,1779874244000,-1241.38,0.00010133,2]
[423131492,1779874244000,-500.0,0.00010406,2]
[423131467,1779874244000,-3364.70300086,0.000102,2]
[423131493,1779874244000,-500.0,0.00010406,2]
[423131525,1779874244000,-859.77,0.00010408,2]
[423131524,1779874244000,-1051.65,0.00010407,2]
[423131526,1779874244000,-366.81751904,0.00010408,2]
[423131528,1779874244000,-500.0,0.00010409,2]
[423131527,1779874244000,-500.0,0.00010408,2]
[423131537,1779874244000,-1338.01,0.0001068,2]
[423131541,1779874244000,-1127.87,0.0001068,2]
[423131530,1779874244000,-152.0,0.00010535,2]
[423131535,1779874244000,-500.0,0.0001068,2]
[423131539,1779874244000,-620.22,0.0001068,2]
[423131529,1779874244000,-3364.70300086,0.000105,2]
[423131531,1779874244000,-161.316583,0.00010559,2]
[423131532,1779874244000,-3364.70300086,0.000106,2]
[423131540,1779874244000,-500.0,0.0001068,2]
[423131536,1779874244000,-500.0,0.0001068,2]
[423131538,1779874244000,-500.0,0.0001068,2]
[423131533,1779874244000,-266.247,0.00010606,2]
[423131542,1779874244000,-750.96,0.0001068,2]
[423131546,1779874244000,-500.0,0.0001068,2]
[423131550,1779874244000,-500.0,0.00010681,2]
[423131548,1779874244000,-500.0,0.0001068,2]
[423131543,1779874244000,-500.0,0.0001068,2]
[423131549,1779874244000,-500.0,0.0001068,2]
[423131544,1779874244000,-500.0,0.0001068,2]
[423131547,1779874244000,-500.0,0.0001068,2]
[423131545,1779874244000,-180.13,0.0001068,2]
[423131483,1779874244000,-569.65,0.00010406,2]
[423131521,1779874244000,-823.57,0.00010407,2]
[423131523,1779874244000,-1089.55,0.00010407,2]
[423131534,1779874244000,-500.0,0.0001068,2]
[423131515,1779874244000,-500.0,0.00010407,2]
[423131522,1779874244000,-500.0,0.00010407,2]
[423131484,1779874244000,-620.22,0.00010406,2]
[423131491,1779874244000,-500.0,0.00010406,2]
[423131494,1779874244000,-500.0,0.00010406,2]
[423131498,1779874244000,-500.0,0.00010406,2]
[423131496,1779874244000,-500.0,0.00010406,2]
[423131499,1779874244000,-500.0,0.00010407,2]
[423131497,1779874244000,-500.0,0.00010406,2]
[423131506,1779874244000,-500.0,0.00010407,2]
[423131502,1779874244000,-500.0,0.00010407,2]
[423131495,1779874244000,-500.0,0.00010406,2]
[423131500,1779874244000,-628.21667168,0.00010407,2]
[423131503,1779874244000,-364.9394346,0.00010407,2]
[423131505,1779874244000,-500.0,0.00010407,2]
[423131504,1779874244000,-500.0,0.00010407,2]
[423131512,1779874244000,-500.0,0.00010407,2]
[423131513,1779874244000,-500.0,0.00010407,2]
[423131501,1779874244000,-500.0,0.00010407,2]
[423131514,1779874244000,-500.0,0.00010407,2]
[423131520,1779874244000,-1241.38,0.00010407,2]
[423131510,1779874244000,-500.0,0.00010407,2]
[423131511,1779874244000,-500.0,0.00010407,2]
[423131518,1779874244000,-500.0,0.00010407,2]
[423131508,1779874244000,-500.0,0.00010407,2]
[423131516,1779874244000,-320.04,0.00010407,2]
[423131519,1779874244000,-500.0,0.00010407,2]
[423131509,1779874244000,-500.0,0.00010407,2]
[423131507,1779874244000,-500.0,0.00010407,2]
[423131517,1779874244000,-500.0,0.00010407,2]
[423131592,1779874245000,-500.0,0.00010955,2]
[423131606,1779874245000,-620.22,0.00011228,2]
[423131589,1779874245000,-236.0706516,0.00010955,2]
[423131591,1779874245000,-500.0,0.00010955,2]
[423131588,1779874245000,-500.0,0.00010955,2]
[423131590,1779874245000,-500.0,0.00010955,2]
[423131587,1779874245000,-598.01223545,0.00010955,2]
[423131594,1779874245000,-500.0,0.00010955,2]
[423131584,1779874245000,-456.97532741,0.00010955,2]
[423131585,1779874245000,-611.8543049,0.00010955,2]
[423131586,1779874245000,-500.0,0.00010955,2]
[423131597,1779874245000,-823.57,0.00010955,2]
[423131595,1779874245000,-500.0,0.00010955,2]
[423131604,1779874245000,-1338.01,0.00011228,2]
[423131612,1779874245000,-500.0,0.00011228,2]
[423131600,1779874245000,-859.77,0.00010956,2]
[423131608,1779874245000,-1127.87,0.00011228,2]
[423131599,1779874245000,-1051.65,0.00010955,2]
[423131601,1779874245000,-245.0,0.00010959,3]
[423131596,1779874245000,-1241.38,0.00010955,2]
[423131605,1779874245000,-500.0,0.00011228,2]
[423131603,1779874245000,-2358.7270028,0.00010959,2]
[423131607,1779874245000,-500.0,0.00011228,2]
[423131622,1779874245000,-1051.65,0.00011229,2]
[423131616,1779874245000,-500.0,0.00011229,2]
[423131621,1779874245000,-1089.55,0.00011229,2]
[423131617,1779874245000,-500.0,0.00011229,2]
[423131619,1779874245000,-1241.38,0.00011229,2]
[423131593,1779874245000,-500.0,0.00010955,2]
[423131598,1779874245000,-1089.55,0.00010955,2]
[423131583,1779874245000,-292.41,0.00010954,2]
[423131553,1779874245000,-500.0,0.00010681,2]
[423131578,1779874245000,-750.96,0.00010954,2]
[423131552,1779874245000,-500.0,0.00010681,2]
[423131610,1779874245000,-500.0,0.00011228,2]
[423131551,1779874245000,-500.0,0.00010681,2]
[423131554,1779874245000,-500.0,0.00010681,2]
[423131555,1779874245000,-500.0,0.00010681,2]
[423131562,1779874245000,-500.0,0.00010681,2]
[423131561,1779874245000,-500.0,0.00010681,2]
[423131560,1779874245000,-500.0,0.00010681,2]
[423131559,1779874245000,-500.0,0.00010681,2]
[423131565,1779874245000,-823.57,0.00010681,2]
[423131557,1779874245000,-500.0,0.00010681,2]
[423131558,1779874245000,-500.0,0.00010681,2]
[423131566,1779874245000,-1089.55,0.00010681,2]
[423131567,1779874245000,-1051.65,0.00010681,2]
[423131582,1779874245000,-271.2,0.00010954,2]
[423131556,1779874245000,-500.0,0.00010681,2]
[423131564,1779874245000,-1241.38,0.00010681,2]
[423131569,1779874245000,-500.0,0.00010683,2]
[423131579,1779874245000,-500.0,0.00010954,2]
[423131581,1779874245000,-500.0,0.00010954,2]
[423131580,1779874245000,-500.0,0.00010954,2]
[423131574,1779874245000,-500.0,0.00010954,2]
[423131572,1779874245000,-3364.70300086,0.000109,2]
[423131568,1779874245000,-859.77,0.00010682,2]
[423131570,1779874245000,-3364.70300086,0.000107,2]
[423131573,1779874245000,-1338.01,0.00010954,2]
[423131571,1779874245000,-3364.70300086,0.000108,2]
[423131575,1779874245000,-620.22,0.00010954,2]
[423131576,1779874245000,-500.0,0.00010954,2]
[423131577,1779874245000,-1127.87,0.00010954,2]
[423131563,1779874245000,-500.0,0.00010681,2]
[423131609,1779874245000,-750.96,0.00011228,2]
[423131602,1779874245000,-15000.0,0.00010959,2]
[423131613,1779874245000,-500.0,0.00011229,2]
[423131656,1779874245000,-4268.6,0.00011506,2]
[423131651,1779874245000,-823.57,0.00011503,2]
[423131611,1779874245000,-500.0,0.00011228,2]
[423131653,1779874245000,-1051.65,0.00011503,2]
[423131655,1779874245000,-4268.6,0.00011506,2]
[423131650,1779874245000,-1241.38,0.00011503,2]
[423131654,1779874245000,-859.77,0.00011504,2]
[423131661,1779874245000,-1338.01,0.00011776,2]
[423131660,1779874245000,-928.98481415,0.0001176,2]
[423131659,1779874245000,-500.0,0.00011708,2]
[423131657,1779874245000,-4268.6,0.00011506,2]
[423131663,1779874245000,-620.22,0.00011776,2]
[423131666,1779874245000,-750.96,0.00011776,2]
[423131673,1779874245000,-500.0,0.00011777,2]
[423131662,1779874245000,-500.0,0.00011776,2]
[423131669,1779874245000,-500.0,0.00011776,2]
[423131665,1779874245000,-1127.87,0.00011776,2]
[423131674,1779874245000,-500.0,0.00011777,2]
[423131670,1779874245000,-500.0,0.00011777,2]
[423131672,1779874245000,-500.0,0.00011777,2]
[423131671,1779874245000,-500.0,0.00011777,2]
[423131668,1779874245000,-500.0,0.00011776,2]
[423131664,1779874245000,-500.0,0.00011776,2]
[423131679,1779874245000,-1051.65,0.00011777,2]